[Event "CZE-ch U16 Open 2023"]
[Site "Teplice"]
[Date "2023.03.18"]
[Round "9.1"]
[White "Fizer, Marek"]
[Black "Vilimek, Vit"]
[Result "0-1"]
[ECO "C55"]
[WhiteElo "1929"]
[BlackElo "2018"]
[Annotator "TA"]
[PlyCount "118"]
[EventDate "2023.03.09"]
[EventType "swiss"]
[EventCountry "CZE"]
[SourceTitle "playchess.com"]
[Source "ChessBase"]
[SourceQuality "1"]
[TimeControl "40/5400+30:1800+30"]

{[%evp 9,117,17,20,23,18,22,32,29,33,29,37,26,31,20,12,8,34,11,11,16,22,0,0,0,12,0,9,0,24,29,22,21,33,30,23,23,22,19,29,27,21,25,25,26,26,27,41,41,49,46,50,52,62,62,62,62,62,62,62,0,61,0,0,-37,-33,-29,-35,-53,-54,-61,-29,-35,-37,-114,-111,-113,-116,-179,-183,-183,-172,-167,-173,-161,-118,-155,0,-155,-160,-160,-152,-152,-145,-183,-152,-389,-383,-1154,-1140,-29978,-29979,-29979,-29980,-29980,-29981,-29980,-29981,-29986,-29987,-29987]} 1. e4 {[%emt 0:00:06]} e5 {[%emt 0:00:06]} 2. Nf3 {[%emt 0:00:21]} Nc6 {[%emt 0:00:02]} 3. Bc4 {[%emt 0:00:32]} Nf6 {[%emt 0:00:07]} 4. d3 {[%emt 0:00:36]} a6 {[%emt 0:01:09]} 5. a4 {[%emt 0:01:47]} Bc5 {[%emt 0:00:07]} 6. c3 {[%emt 0:01:52] C55: Two Knights: 4 d3, 4 d4 exd4 5 e5 and Max Lange Attack.} Ba7 {[%emt 0:00:12]} 7. O-O {[%emt 0:01:31]} d6 {[%emt 0:01:42]} 8. Nbd2 {[%emt 0:02:02] White is slightly better.} Be6 {[%emt 0:02:37]} 9. Bxe6 {[%emt 0:02:53]} fxe6 {[%emt 0:00:01]} 10. Nc4 {[%emt 0:00:54]} O-O {[%emt 0:03:13]} 11. Re1 {[%emt 0:08:16]} Qe8 {[%emt 0:15:12]} 12. Be3 {[%emt 0:10:46] [#]} b5 $146 {[%emt 0:08:43]} ({Predecessor:} 12... Bxe3 13. Rxe3 b5 14. Ncd2 b4 15. d4 a5 16. h3 bxc3 17. bxc3 exd4 18. cxd4 Nb4 {½-½ Broadway,D (2292)-Voetter,H (2390) VW-Cup9 Gr23 email 2016}) 13. axb5 {[%emt 0:02:30]} axb5 {[%emt 0:00:14]} 14. Ncd2 {[%emt 0:03:13]} Bxe3 {[%emt 0:02:08]} 15. fxe3 {[%emt 0:01:38]} Rxa1 {[%emt 0:14:37]} 16. Qxa1 {[%emt 0:00:10]} Qd7 {[%emt 0:10:52]} 17. Qa2 {[%emt 0:16:17]} h6 {[%emt 0:03:05]} 18. d4 {[%emt 0:02:49]} d5 {[%emt 0:06:14]} 19. exd5 {[%emt 0:02:37]} Qxd5 {[%emt 0:07:20]} 20. Qxd5 {[%emt 0:01:44]} exd5 {[%emt 0:00:12]} 21. dxe5 {[%emt 0:01:55]} Nd7 {[%emt 0:09:08]} 22. e4 {[%emt 0:06:45]} dxe4 {[%emt 0:00:14]} 23. Rxe4 {[%emt 0:00:10]} Re8 {[%emt 0:00:58]} 24. Nd4 {[%emt 0:03:04]} Ncxe5 {[%emt 0:00:26]} 25. Nxb5 {[%emt 0:02:21]} Rb8 {[%emt 0:02:52]} 26. Nxc7 {[%emt 0:03:57] [#] b4 would be deadly.} Rxb2 {[%emt 0:00:06]} 27. Rd4 {[%emt 0:06:19]} Nc5 {[%emt 0:01:52]} 28. Nc4 {[%emt 0:02:42]} Rb1+ {[%emt 0:02:47]} 29. Kf2 {[%emt 0:01:22]} Ned3+ {[%emt 0:01:57]} 30. Ke3 {[%emt 0:02:39]} Ne1 {[%emt 0:03:52]} 31. Rd2 {[%emt 0:02:18] Dodges Nc2+} Rc1 {[%emt 0:01:58]} 32. Nd5 {[%emt 0:04:08]} Na4 {[%emt 0:01:19]} 33. Kd4 {[%emt 0:01:29]} Nc2+ {[%emt 0:00:08]} 34. Ke5 {[%emt 0:02:00]} (34. Ke4 $1 $14) 34... Ne1 {[%emt 0:00:08]} ({Black should try} 34... Nxc3 $1 $11 35. Nxc3 Nb4) 35. Ne7+ {[%emt 0:03:41]} ({Better is} 35. Kf5 $1 $14 Kh7 36. Ke4) 35... Kh7 $1 $11 {[%emt 0:01:25]} 36. Rd7 {[%emt 0:00:30] And now Nf5 would win.} Rxc3 {[%emt 0:00:19]} 37. Nd6 {[%emt 0:00:32] Hoping for Nef5.} Nd3+ {[%emt 0:00:49]} 38. Kd4 {[%emt 0:00:25] Threatens to win with Nef5.} Ndc5 {[%emt 0:00:30]} 39. Ra7 {[%emt 0:00:32]} Rd3+ {[%emt 0:00:22]} 40. Ke5 {[%emt 0:00:26]} Nb6 {[%emt 0:00:30]} 41. Nef5 {[%emt 0:02:39]} (41. Nec8 $15 Nbd7+ 42. Kf4) 41... Nbd7+ $17 {[%emt 0:01:06]} 42. Kf4 {[%emt 0:05:51]} g6 {[%emt 0:12:19]} 43. Ne4 {[%emt 0:01:48]} (43. h4 $17) 43... Ne6+ $19 {[%emt 0:01:47]} 44. Kg4 {[%emt 0:00:07] Black must now prevent Nf6+.} gxf5+ {[%emt 0:03:47]} ({Not} 44... h5+ 45. Kh4 gxf5 46. Rxd7+ Rxd7 47. Nf6+ Kh6 48. Nxd7 $11) 45. Kxf5 {[%emt 0:00:08]} Ng7+ {[%emt 0:00:51]} 46. Kf4 {[%emt 0:00:50][%cal Oa7d7]} Nb6 {[%emt 0:00:50]} 47. Ra6 {[%emt 0:02:00]} Nd7 {[%emt 0:03:31]} 48. Ra7 $1 {[%emt 0:00:14][%cal Oa7d7]} Nf8 {[%emt 0:04:38]} 49. Ke5 {[%emt 0:03:19]} Kg6 {[%emt 0:01:46] Strongly threatening ...Nd7+.} 50. Ra6+ {[%emt 0:00:48] [#]} Nfe6 $1 {[%emt 0:02:45]} 51. Rb6 {[%emt 0:03:54]} (51. h4 Re3) 51... Re3 {[%emt 0:01:03] aiming for ...Re2.} 52. h4 $2 {[%emt 0:03:22] Now White is beyond hope.} (52. g4 $17) 52... Kh5 {[%emt 0:01:56]} 53. Rb4 $2 {[%emt 0:08:27]} (53. g3) 53... Nc5 {[%emt 0:00:21] ( -> ...Rxe4+)} (53... Kxh4 54. Kf6 $15) 54. Kf6 {[%emt 0:02:34]} Rxe4 {[%emt 0:00:26] Black mates.} 55. Rxe4 {[%emt 0:00:10]} Nxe4+ {[%emt 0:00:00]} 56. Kxg7 {[%emt 0:00:20]} Ng3 $1 {[%emt 0:00:15]} (56... Kxh4 57. Kxh6 Ng5 58. Kg7 $11) 57. Kh7 {[%emt 0:00:23]} Nf5 $1 {[%emt 0:00:09]} ({Weaker is} 57... Kxh4 58. Kxh6 Nh5 59. Kh7 $11) 58. g4+ {[%emt 0:00:17]} Kxg4 {[%emt 0:00:02]} 59. Kg6 {[%emt 0:00:09]} h5 {[%emt 0:00:13] Weighted Error Value: White=0.41/Black=0.08 (flawless)} ({Stronger than} 59... Nxh4+ 60. Kxh6 $11) 0-1

[Event "CZE-ch U16 Open 2023"]
[Site "Teplice"]
[Date "2023.03.18"]
[Round "9.2"]
[White "Mametev, Artem"]
[Black "Paseka, Matyas"]
[Result "0-1"]
[ECO "B57"]
[WhiteElo "2074"]
[BlackElo "2082"]
[Annotator "TA"]
[PlyCount "60"]
[EventDate "2023.03.09"]
[EventType "swiss"]
[EventCountry "CZE"]
[SourceTitle "playchess.com"]
[Source "ChessBase"]
[SourceQuality "1"]
[TimeControl "40/5400+30:1800+30"]

{[%evp 13,60,0,10,0,0,0,0,-12,0,0,0,0,55,50,140,75,67,89,160,156,505,485,470,282,272,233,221,0,0,0,0,-28,-29,-134,-71,-352,-356,-378,-364,-376,-360,-399,-416,-1189,-1179,-1168,-1126,-1068,-1057]} 1. e4 {[%emt 0:00:04]} c5 {[%emt 0:00:07]} 2. Nf3 {[%emt 0:00:03]} d6 {[%emt 0:00:09]} 3. d4 {[%emt 0:00:04]} cxd4 {[%emt 0:00:06]} 4. Nxd4 {[%emt 0:00:02]} Nf6 {[%emt 0:00:08]} 5. Nc3 {[%emt 0:00:05]} Nc6 {[%emt 0:00:05]} 6. Bc4 {[%emt 0:00:13]} Qb6 {[%emt 0:00:07]} 7. Nde2 {[%emt 0:00:08]} e6 {[%emt 0:02:22]} 8. a3 {[%emt 0:02:07] B57: Classical Sicilian: Sozin with 6...Qb6.} a6 {[%emt 0:01:30]} 9. O-O {[%emt 0:00:30]} Be7 {[%emt 0:01:12]} 10. Ba2 {[%emt 0:03:43] The position is equal.} Qc7 {[%emt 0:05:19]} 11. Kh1 {[%emt 0:08:51]} b5 {[%emt 0:05:26]} 12. f4 {[%emt 0:18:18][%cal Bf2f4,Bf4f5][%mdl 32] [#]} h6 $146 {[%emt 0:11:22]} (12... O-O $11) ({Predecessor:} 12... O-O 13. Ng3 Na5 14. f5 Nc4 15. Bxc4 Qxc4 16. Bg5 Ra7 17. Rf4 Qc5 18. Rf3 Rc7 {0-1 Saladen Dulce,R (2300)-Pupo,E (2340) Cali op-A 3rd 1999 (5)}) 13. f5 $14 {[%emt 0:04:22]} e5 {[%emt 0:00:44] Dodges Nf4} ({Black should try} 13... Ne5 $14) 14. h3 {[%emt 0:13:08]} (14. Ng3 $142) 14... Bb7 $16 {[%emt 0:00:33]} 15. Ng3 {[%emt 0:14:40]} Rc8 {[%emt 0:07:04] [#]} (15... Na5 $142) 16. Nh5 $1 {[%emt 0:04:48]} (16. Nd5 $6 Nxd5 17. Bxd5 Bf6 $14) 16... O-O {[%emt 0:10:55]} (16... Nxh5 $16 17. Qxh5 Nd8) 17. Nd5 $18 {[%emt 0:08:22] Intending Nhxf6+ and mate.} Qd8 {[%emt 0:00:46]} 18. Nhxf6+ {[%emt 0:00:33]} Bxf6 {[%emt 0:00:09]} 19. Qg4 {[%emt 0:03:27]} Kh7 {[%emt 0:01:10] [#]} 20. Be3 $2 {[%emt 0:01:06]} ({White has to play} 20. h4 $1 $18 {Hoping for Nxf6+.} Rh8 21. Qh5) 20... Nd4 $1 $11 {[%emt 0:00:47]} 21. Nxf6+ {[%emt 0:02:18]} Qxf6 {[%emt 0:00:17]} 22. Bf2 {[%emt 0:00:20] aiming for c3.} (22. h4 $5 {[%cal Re3g5]} Rh8 23. Bxd4 exd4 24. Bb3 $17) 22... Rxc2 {[%emt 0:17:16] White must now prevent ...Qg5.} 23. Rac1 {[%emt 0:09:53]} (23. Bh4 $11 h5 24. Qxh5+ Qh6 25. Qg4 (25. Qxh6+ Kxh6 26. Rae1 Rxb2 $17)) 23... Re2 {[%emt 0:07:13] Black is more active.} (23... Rxb2 $142 24. Bh4 h5 25. Qxh5+ Qh6 26. Qxh6+ Kxh6) 24. Bxd4 $4 {[%emt 0:03:20][%mdl 8192]} (24. Bh4 $17 h5 25. Qxe2 (25. Qxh5+ Qh6 $17) 25... Nxe2 26. Bxf6 Nxc1 27. Rxc1 gxf6 28. Bb1) 24... Rxe4 $19 {[%emt 0:00:08]} 25. Rf4 {[%emt 0:00:16]} Rxd4 {[%emt 0:02:03]} (25... Rxf4 $2 {loses.} 26. Qxf4 exd4 27. Rc7 $19) 26. Rxd4 {[%emt 0:00:06]} exd4 {[%emt 0:00:04]} 27. Rd1 {[%emt 0:01:56]} Re8 {[%emt 0:05:51]} 28. Qxd4 {[%emt 0:01:04] [#]} (28. Bb1 $142) 28... Re1+ $3 {[%emt 0:00:09][%mdl 576] Deflection. Black is clearly winning.} 29. Kh2 {[%emt 0:00:14]} Rxd1 {[%emt 0:00:09][%mdl 64] Deflection} 30. Qxd1 {[%emt 0:00:09]} Qxb2 {[%emt 0:00:06] Artfully played by Paseka.   Weighted Error Value: White=0.66/Black=0.39} ({Stronger than} 30... Qxf5 31. Bb1 Be4 32. Bxe4 Qxe4 33. Qxd6 $17) 0-1

[Event "CZE-ch U16 Open 2023"]
[Site "Teplice"]
[Date "2023.03.18"]
[Round "9.3"]
[White "Janous, Marek"]
[Black "Prazak, Daniel"]
[Result "1-0"]
[ECO "A01"]
[WhiteElo "2124"]
[BlackElo "2064"]
[Annotator "TA"]
[PlyCount "79"]
[EventDate "2023.03.09"]
[EventType "swiss"]
[EventCountry "CZE"]
[SourceTitle "playchess.com"]
[Source "ChessBase"]
[SourceQuality "1"]
[TimeControl "40/5400+30:1800+30"]

{[%evp 10,79,0,0,0,0,0,0,0,-2,0,-8,0,-26,-27,-32,-34,-29,-33,-26,0,0,0,0,-17,-6,202,191,188,185,236,243,225,204,274,273,264,225,430,433,374,25,27,0,0,0,0,0,387,379,341,315,309,299,370,366,335,0,0,0,0,0,0,0,0,0,0,0,29986,29987,29987,29988]} 1. b3 {[%emt 0:01:21]} d5 {[%emt 0:01:02]} 2. Bb2 {[%emt 0:00:32]} Bf5 {[%emt 0:00:25]} 3. e3 {[%emt 0:00:42]} e6 {[%emt 0:01:00]} 4. f4 {[%emt 0:00:47]} Nf6 {[%emt 0:01:19]} 5. Nf3 {[%emt 0:00:08]} Nbd7 {[%emt 0:01:23]} 6. Be2 {[%emt 0:00:57]} h6 {[%emt 0:01:34] A03: Bird's Opening with 1...d5.} 7. O-O {[%emt 0:00:50]} Bd6 {[%emt 0:03:16]} 8. Ne5 {[%emt 0:00:44]} O-O {[%emt 0:01:21] The position is equal.} 9. d3 {[%emt 0:15:50]} c6 {[%emt 0:05:04]} 10. Qe1 {[%emt 0:11:29] [#]} Bc7 $146 {[%emt 0:12:33]} ({Predecessor:} 10... Ne8 11. Nxd7 Qxd7 12. Nd2 Bh7 13. Qg3 f6 14. Bh5 Bb4 15. Nf3 Nd6 16. Nh4 Nf5 17. Nxf5 Bxf5 {0-1 Mustafin,A (2241)-Karpenko,A (2258) Moscow op-A 2016 (1)}) 11. Nd2 {[%emt 0:05:50]} Nxe5 {[%emt 0:02:00]} 12. fxe5 {[%emt 0:00:29]} Nd7 {[%emt 0:01:39]} 13. Nf3 {[%emt 0:14:09]} Qb8 {[%emt 0:02:13][%cal Rd7e5]} 14. Ba3 {[%emt 0:08:44]} Re8 {[%emt 0:02:03]} 15. d4 {[%emt 0:00:09]} f6 {[%emt 0:10:48][%cal Bf7f6,Bf6e5][%mdl 32]} 16. Nh4 {[%emt 0:01:59] Rxf5 is the strong threat.} fxe5 {[%emt 0:03:02]} 17. Bh5 {[%emt 0:00:16]} Rd8 $2 {[%emt 0:17:49]} (17... Be4 $1 $11 {and Black is okay.}) 18. Nxf5 $18 {[%emt 0:18:58]} exf5 {[%emt 0:00:07]} 19. Rxf5 {[%emt 0:00:36]} Bd6 {[%emt 0:05:16]} (19... Kh8 {is a better defense.}) 20. Bxd6 {[%emt 0:02:09]} Qxd6 {[%emt 0:00:13]} 21. dxe5 {[%emt 0:00:07]} Qe7 {[%emt 0:05:40][%cal Od8f8]} 22. Bf7+ {[%emt 0:00:20]} Kh8 {[%emt 0:01:11]} 23. Qg3 {[%emt 0:00:24] Threatens to win with Raf1.} Nc5 $2 {[%emt 0:04:26]} (23... Nf6 {might work better.} 24. exf6 Qxf7) 24. Qg6 {[%emt 0:00:46]} Ne4 {[%emt 0:02:07]} 25. Rh5 $2 {[%emt 0:00:44]} (25. Raf1 $18) 25... Ng5 $11 {[%emt 0:01:01]} 26. Rf1 {[%emt 0:01:24]} Qxe5 {[%emt 0:07:23]} 27. h4 {[%emt 0:03:47]} Qxe3+ {[%emt 0:00:13]} 28. Kh2 {[%emt 0:00:55]} Ne4 $2 {[%emt 0:00:39][%mdl 8192]} (28... Nh7 $11) 29. Rf3 $1 $18 {[%emt 0:01:35]} Qd2 {[%emt 0:01:08]} 30. Be6 $1 {[%emt 0:02:16] Bf5 would be deadly.} Rf8 {[%emt 0:02:18]} 31. Bf5 $1 {[%emt 0:02:17][%csl Gf5][%cal Rg6h7]} Nf6 {[%emt 0:03:19] [#] Wards off Qh7+} (31... Qxc2 $2 32. Qh7#) 32. Rg3 $1 {[%emt 0:00:52][%csl Gg3][%cal Rg6g7]} Rg8 {[%emt 0:00:01] [#]} 33. Rgg5 $1 $40 {[%emt 0:01:21][%mdl 128] Black needs to defend precisely.} Qf4+ $11 {[%emt 0:00:22]} (33... Nxh5 $2 34. Qh7#) 34. Kh3 {[%emt 0:00:23][%cal Oh5h6] White threatens Rxh6+! and mate. Really sharp!} Qe3+ {[%emt 0:00:26]} (34... Nxh5 $2 35. Qh7#) 35. g3 {[%emt 0:00:24][%cal Oh5h6] Intending Rxh6+! and mate.} (35. Kh2 {is interesting.} Qe7 36. Bd3 Raf8 37. Rf5) 35... Qe7 {[%emt 0:00:21] White must now prevent ...Rgf8.} (35... Nxh5 $2 36. Qh7#) 36. Rxh6+ {[%emt 0:03:04][%mdl 64] Demolition} gxh6 {[%emt 0:00:06]} 37. Qxh6+ {[%emt 0:00:05]} Nh7 {[%emt 0:00:30]} 38. Bxh7 $1 {[%emt 0:00:35]} Rxg5 {[%emt 0:01:20][%mdl 8192]} (38... Qxh7 $11 39. Qf6+ Rg7) 39. Bf5+ {[%emt 0:00:09]} Kg8 {[%emt 0:00:08]} 40. Be6+ {[%emt 0:00:01] Excellently played by Janous!   Weighted Error Value: White=0.35/Black=0.59} ({Worse is} 40. Qxg5+ Qxg5 41. hxg5 Kg7 $17) 1-0

[Event "CZE-ch U16 Open 2023"]
[Site "Teplice"]
[Date "2023.03.18"]
[Round "9.4"]
[White "Lang, Simon"]
[Black "Seidl, Jan"]
[Result "1-0"]
[ECO "B10"]
[WhiteElo "1974"]
[BlackElo "2025"]
[Annotator "TA"]
[PlyCount "117"]
[EventDate "2023.03.09"]
[EventType "swiss"]
[EventCountry "CZE"]
[SourceTitle "playchess.com"]
[Source "ChessBase"]
[SourceQuality "1"]
[TimeControl "40/5400+30:1800+30"]

{[%evp 22,117,19,12,24,16,18,26,15,0,0,0,18,9,16,11,64,58,149,140,330,333,319,322,296,237,342,339,381,385,448,441,525,524,613,608,629,646,647,650,645,643,730,616,607,595,986,526,520,529,488,366,473,509,481,389,509,508,510,491,578,578,554,461,510,368,475,460,966,966,966,966,959,959,959,959,959,959,959,959,952,939,944,944,930,922,922,916,909,902,922,894,787,610,29982,29983,29989,29990]} 1. e4 {[%emt 0:00:34]} c6 {[%emt 0:00:14]} 2. c4 {[%emt 0:00:53]} d5 {[%emt 0:00:11]} 3. exd5 {[%emt 0:00:54]} cxd5 {[%emt 0:00:04]} 4. cxd5 {[%emt 0:00:37]} Nf6 {[%emt 0:00:27]} 5. Nc3 {[%emt 0:00:56]} g6 {[%emt 0:03:58]} 6. Qb3 {[%emt 0:02:33]} Bg7 {[%emt 0:00:17]} 7. g3 {[%emt 0:02:06]} O-O {[%emt 0:01:11]} 8. Bg2 {[%emt 0:01:42]} Nbd7 {[%emt 0:00:29]} 9. d4 {[%emt 0:09:25]} Nb6 {[%emt 0:02:23]} 10. Nge2 {[%emt 0:02:45]} Bf5 {[%emt 0:02:11]} 11. O-O {[%emt 0:08:00]} Bd3 {[%emt 0:01:09] [#]} 12. d6 $1 {[%emt 0:05:02][%mdl 64] Discovered Attack} Qxd6 {[%emt 0:00:55] B14: Caro-Kann: Panov-Botvinnik Attack with 5...e6 and 5...g6.} 13. Bxb7 {[%emt 0:08:47]} Rad8 {[%emt 0:00:08]} 14. Bf4 {[%emt 0:07:43]} Qd7 {[%emt 0:01:52] White has an edge.} 15. Bf3 {[%emt 0:03:32]} Bc4 {[%emt 0:02:51] [#]} 16. Qa3 $146 {[%emt 0:03:40]} ({Predecessor:} 16. Qd1 Nfd5 17. Be3 Nxe3 18. fxe3 Bh6 19. e4 Be3+ 20. Kh1 Bxd4 21. Qxd4 Qxd4 22. Nxd4 Rxd4 {½-½ Ivanenko,O (2077)-Bogdan,D UKR-ch U14 Girls 2007 (7)}) 16... Nfd5 {[%emt 0:02:57]} 17. Rfe1 {[%emt 0:04:18]} Nxf4 {[%emt 0:20:30]} 18. Nxf4 {[%emt 0:01:31]} e6 {[%emt 0:07:29]} (18... Bxd4 $11 19. Qxe7 (19. Rxe7 Qf5 $15) 19... Rfe8 20. Qxd7 Rxe1+ 21. Rxe1 Rxd7) 19. Rad1 $14 {[%emt 0:07:17]} Bxd4 {[%emt 0:10:44]} (19... Qd6 $14) 20. b3 $16 {[%emt 0:09:08] aiming for Re4. White is much more active.} Bb5 $2 {[%emt 0:05:05] [#] A mistake that costs the game.} (20... Qc7 $16 {was worth a try.}) 21. Rxd4 $1 $18 {[%emt 0:01:58][%mdl 576] Deflection} Qxd4 {[%emt 0:00:05]} 22. Nxb5 {[%emt 0:00:09]} Qf6 {[%emt 0:00:02]} 23. Bg2 {[%emt 0:05:36]} (23. Nxa7 e5 $16) 23... e5 {[%emt 0:00:27]} (23... Nc8 $142 24. Qa5 (24. Nxa7 Nxa7 25. Qxa7 Qb2 $18) 24... Rd7) 24. Ne2 {[%emt 0:00:53]} e4 {[%emt 0:00:06]} 25. Nec3 {[%emt 0:01:22]} (25. Bxe4 Rfe8 $18) (25. Qxa7 Ra8 $18) 25... e3 {[%emt 0:00:07]} 26. Rxe3 {[%emt 0:00:48]} (26. Qxa7 $2 Qxf2+ 27. Kh1 Qxe1+) ({Not} 26. fxe3 Rd7 27. Ne4 Qe7 $18) 26... Rd2 {[%emt 0:01:01]} 27. Bf3 {[%emt 0:01:47]} (27. Nxa7 $2 {leads to mate.} Qxf2+ 28. Kh1 Qxg2#) 27... Rd7 {[%emt 0:01:00]} 28. Nxa7 {[%emt 0:02:12]} g5 {[%emt 0:00:27]} 29. g4 {[%emt 0:00:26]} h5 {[%emt 0:00:33]} 30. h3 {[%emt 0:01:29][%cal Bh2h3,Bh3g4][%mdl 32]} hxg4 {[%emt 0:00:18]} 31. hxg4 {[%emt 0:00:05]} Kg7 {[%emt 0:00:07]} 32. Qa5 {[%emt 0:02:16]} Rh8 {[%emt 0:00:58]} 33. Nc6 {[%emt 0:00:54]} Rd2 {[%emt 0:04:08]} 34. Qe5 {[%emt 0:02:55] Wards off Nd5} Nd7 {[%emt 0:00:32]} 35. Qxf6+ {[%emt 0:01:11]} Nxf6 {[%emt 0:00:05]} 36. Ne4 {[%emt 0:00:34]} Rxa2 {[%emt 0:00:41]} 37. Nxf6 {[%emt 0:01:36]} ({Don't take} 37. Nxg5 Re8 38. Re5 Rc2 $18) 37... Kxf6 {[%emt 0:00:06]} 38. Re1 {[%emt 0:00:20] Prevents Ra1.} Rb2 {[%emt 0:00:44]} 39. b4 {[%emt 0:00:16][%cal Bb3b4,Bb4b5][%mdl 32]} Rc8 {[%emt 0:00:26]} 40. Kg2 {[%emt 0:01:10]} Rc2 {[%emt 0:00:37]} 41. b5 {[%emt 0:30:52] And now Rb1 would win.} Rb2 {[%emt 0:30:17] Wards off Rb1} 42. Re3 {[%emt 0:00:00]} Rc7 {[%emt 0:00:00]} 43. Be2 {[%emt 0:00:00]} Rb7 {[%emt 0:00:00]} 44. Kf3 {[%emt 0:00:00]} Rxe2 {[%emt 0:00:00]} (44... Rd7 $142 45. Re5 Kg6) 45. Kxe2 {[%emt 0:00:00]} Rxb5 {[%emt 0:00:00][%mdl 4096] Endgame KRN-KR} 46. Nd4 {[%emt 0:00:00]} Rb4 {[%emt 0:00:00]} 47. Re4 {[%emt 0:00:00]} Ra4 {[%emt 0:00:00]} 48. Kf3 {[%emt 0:00:00]} Ra3+ {[%emt 0:00:00]} 49. Re3 {[%emt 0:00:00]} Ra4 {[%emt 0:00:00]} 50. Ke4 {[%emt 0:00:00]} Kg6 {[%emt 0:00:00]} 51. Rf3 {[%emt 0:00:00]} f6 {[%emt 0:00:00]} 52. Rf5 {[%emt 0:00:00]} Ra2 {[%emt 0:00:00]} 53. f3 {[%emt 0:00:00]} Ra1 {[%emt 0:00:00]} 54. Nc6 {[%emt 0:00:00]} Re1+ {[%emt 0:00:00]} 55. Kd5 {[%emt 0:00:00]} Rd1+ {[%emt 0:00:00]} 56. Ke6 {[%emt 0:00:00]} Re1+ {[%emt 0:00:00]} 57. Kd6 {[%emt 0:00:00] Strongly threatening Ra5.} Rd1+ {[%emt 0:00:00]} 58. Ke7 {[%emt 0:00:00]} Re1+ {[%emt 0:00:00]} 59. Kf8 {[%emt 0:00:00] Weighted Error Value: White=0.12 (very precise) /Black=0.44} 1-0